bitfinex-derivatives/quotes_ETHF0:USTF0_20241104
["timestamp","ask_amount","ask_price","bid_price","bid_amount"]
[1730763845746,8.88167,2400.7,2400.6,0.56354708]
[1730763846154,11.03901704,2400.7,2400.6,0.56354708]
[1730763846344,10.62224704,2400.7,2400.6,0.56388945]
[1730763846543,0.41684,2400.3,2400.2,4.29722136]
[1730763846744,0.41684,2400.3,2400.2,5.76335551]
[1730763846951,4.58324,2400.3,2400.2,4.67393415]
[1730763850942,4.58324,2400.3,2400.2,0.56389775]
[1730763850943,7.83423504,2400.3,2400.2,0.56389775]
[1730763851142,4.1664,2400.3,2400.2,0.5684112]
[1730763851348,1.98925,2400.3,2400.2,0.5684112]
[1730763851952,6.15565,2400.3,2400.2,0.5684112]
[1730763852148,1.98925,2400.3,2400.2,0.5684112]
[1730763852355,6.15565,2400.3,2400.2,0.5684112]
[1730763852555,5.7388,2400.3,2400.2,0.5684112]
[1730763852751,1.98924,2400.3,2400.2,0.5684112]
[1730763853057,6.15564,2400.3,2400.2,0.5684112]
[1730763853256,1.98924,2400.3,2400.2,1.47781951]
[1730763853449,1.98924,2400.3,2400.0,2.23122136]
[1730763853650,1.98924,2400.3,2400.1,1.477771]
[1730763853849,0.41686,2400.2,2400.0,2.64810136]
[1730763854057,0.41686,2400.2,2400.1,0.56838902]
[1730763854356,0.41686,2400.2,2400.1,1.47788561]
[1730763855262,0.41686,2400.2,2400.0,0.5867]
[1730763855462,0.41686,2400.2,2400.0,1.67612136]
[1730763856356,0.41687,2400.1,2400.0,0.069]
[1730763856557,3.62467,2400.1,2400.0,0.069]
[1730763856761,7.79107,2400.1,2400.0,0.069]
[1730763857259,4.58327,2400.1,2400.0,0.069]
[1730763857558,4.58327,2400.1,2400.0,0.63749569]
[1730763857957,0.41687,2400.1,2400.0,0.63749569]
[1730763858153,1.5724,2400.3,2400.0,0.63749569]
[1730763858362,0.41687,2400.1,2400.0,0.63749569]
[1730763858755,0.41686,2400.2,2400.0,1.05438569]
[1730763859163,1.5724,2400.3,2400.0,0.63749569]
[1730763859360,0.41687,2400.1,2400.0,1.17509569]
[1730763859562,0.41687,2400.1,2400.0,0.6066]
[1730763859982,0.41687,2400.2,2400.0,0.6066]
[1730763860275,1.5724,2400.3,2400.0,0.6066]
[1730763860470,1.98925,2400.3,2400.1,0.41687]
[1730763860665,1.98925,2400.3,2400.0,0.6066]
[1730763860871,0.41686,2400.2,2400.0,1.02348]
[1730763861472,1.98925,2400.3,2400.0,1.02348]
[1730763861870,0.41686,2400.2,2400.0,1.02348]
[1730763862069,1.5724,2400.3,2400.0,0.6066]
[1730763862275,3.2078,2400.4,2400.3,0.41684]
[1730763862473,2.15734704,2400.6,2400.4,0.41682]
[1730763862474,0.5015,2400.6,2400.4,0.41682]
[1730763862678,0.41681,2400.5,2400.3,0.41683]
[1730763863074,0.41681,2400.5,2400.4,0.5051]
[1730763863873,0.5015,2400.6,2400.4,4.6707]
[1730763864082,0.5015,2400.6,2400.5,0.4168]
[1730763864281,0.5015,2400.6,2400.4,1.59452136]
[1730763864478,0.41678,2400.7,2400.5,0.4168]
[1730763865074,47.77474704,2400.9,2400.4,1.59452136]
[1730763865280,0.41676,2400.8,2400.6,0.41678]
[1730763865875,0.41676,2400.8,2400.3,1.63413204]
[1730763866079,0.62452199,2400.7,2400.2,5.39076343]
[1730763866375,3.2078,2400.9,2400.8,0.41675]
[1730763866583,0.62439447,2400.9,2400.8,4.58155]
[1730763866878,0.62439447,2400.9,2400.8,5.88708703]
[1730763867374,0.62439447,2400.9,2400.8,3.02156058]
[1730763867580,0.62439447,2400.9,2400.6,3.22492343]
[1730763867784,0.41669,2401.2,2400.8,1.261]
[1730763867978,0.41669,2401.2,2401.0,0.41671]
[1730763868174,0.41669,2401.2,2401.1,3.39450124]
[1730763868573,3.28221645,2401.2,2401.1,2.16497156]
[1730763869281,4.90861366,2401.2,2401.1,0.56658298]
[1730763869480,4.90861366,2401.2,2401.1,4.21188189]
[1730763870375,4.90861366,2401.2,2401.1,3.86319161]
[1730763870885,4.90861366,2401.2,2401.1,3.86306872]
[1730763871283,2.86552645,2401.2,2400.6,1.8162]
[1730763871581,2.86552645,2400.8,2400.7,2.69831325]
[1730763871882,3.28227645,2400.8,2400.7,2.69831325]
[1730763872785,3.28227645,2400.8,2400.7,2.69667202]
[1730763874183,3.28227645,2400.8,2400.7,3.11344202]
[1730763874386,3.28227645,2400.8,2400.7,0.76865914]
[1730763874688,2.86552645,2400.8,2400.7,3.11341824]
[1730763875179,3.28227645,2400.8,2400.7,3.11341824]
[1730763877982,2.86552645,2400.8,2400.7,3.11341824]
[1730763878387,1.0153,2400.9,2400.7,3.11341824]
[1730763878686,0.41675,2400.8,2400.7,0.41677]
[1730763878884,0.41675,2400.8,2400.7,3.11317574]
[1730763880881,3.28227645,2400.8,2400.7,2.69640574]
[1730763881278,0.41677,2400.7,2400.6,1.67578]
[1730763881490,3.28229645,2400.7,2400.6,4.02054303]
[1730763881887,3.28229645,2400.7,2400.6,4.37221964]
[1730763882998,3.28229645,2400.7,2400.6,2.69643964]
[1730763883194,3.28229645,2400.7,2400.6,4.21625542]
[1730763883497,3.28229645,2400.7,2400.6,3.56757731]
[1730763884101,3.28229645,2400.7,2400.6,4.21628848]
[1730763884393,3.28229645,2400.7,2400.6,4.21632015]
[1730763885094,0.4168,2400.5,2400.4,0.069]
[1730763885390,6.53332149,2400.5,2400.4,3.63690048]
[1730763885688,0.41686,2400.2,2400.1,0.64881357]
[1730763885889,0.41686,2400.2,2399.6,0.5507]
[1730763885890,3.2078,2400.2,2400.0,0.64881357]
[1730763886083,0.41694,2399.8,2399.6,0.96766]
[1730763886283,2.86552645,2399.7,2399.6,0.5507]
[1730763886490,2.86552645,2399.7,2399.6,0.96766]
[1730763886792,3.28246645,2399.7,2399.6,0.5507]
[1730763887302,2.86552645,2399.7,2399.6,0.96766]
[1730763887797,3.28246645,2399.7,2399.6,0.96766]
[1730763888384,3.28246645,2399.7,2399.6,0.5507]
[1730763891894,6.11652149,2399.7,2399.1,0.64881357]
[1730763892103,0.5507,2399.8,2398.7,4.30737887]
[1730763892104,2.21671288,2399.2,2398.8,1.588]
[1730763892395,2.21671288,2399.0,2398.9,0.41707]
[1730763893006,3.62482,2399.3,2399.1,0.41704]
[1730763893298,2.21671288,2399.1,2399.0,0.41706]
[1730763894196,2.63376288,2399.1,2398.9,0.41707]
[1730763894899,2.21671288,2399.0,2398.9,0.41707]
[1730763895490,0.41705,2399.1,2398.8,1.588]
[1730763895491,0.92574,2399.2,2398.8,1.588]
[1730763895691,2.21671288,2399.1,2399.0,0.41706]
[1730763895899,2.21671288,2399.1,2399.0,1.42021596]
[1730763896095,2.63376288,2399.1,2398.9,0.41707]
[1730763897796,2.21671288,2399.1,2399.0,1.04362107]
[1730763898298,2.63376288,2399.1,2399.0,1.04362107]
[1730763898599,2.63376288,2399.1,2399.0,1.04344218]
[1730763899203,2.63376288,2399.1,2399.0,0.62638218]
[1730763899392,5.46770792,2399.1,2398.3,0.41717]
[1730763899596,5.46770792,2399.1,2398.4,2.26028383]
[1730763899597,2.21671288,2398.5,2398.4,2.26028383]
[1730763899904,2.21671288,2398.5,2398.4,1.0434425]
[1730763900099,3.2078,2398.8,2398.4,0.6262725]
[1730763900290,2.21671288,2398.7,2398.5,1.88630373]
[1730763900494,0.41713,2398.6,2398.5,1.26]
[1730763900791,2.63384288,2398.6,2398.5,1.26]
[1730763902395,2.21671288,2398.6,2398.5,1.26]
[1730763902610,2.21671288,2398.6,2398.5,1.67715]
[1730763903103,1.055,2399.0,2398.5,1.67715]
[1730763903104,3.2078,2399.1,2398.5,5.13635347]
[1730763903295,2.21671288,2399.1,2398.9,0.41707]
[1730763903495,2.21671288,2399.1,2399.0,0.92836]
[1730763904696,2.21671288,2399.1,2399.0,0.5113]
[1730763905097,2.21671288,2399.1,2398.4,1.25046168]
[1730763905403,7.42504624,2398.5,2397.9,0.21450439]
[1730763905699,0.9662512,2398.1,2398.0,0.62525721]
[1730763905905,1.3834712,2398.1,2398.0,0.62525721]
[1730763906403,0.41724,2398.0,2397.9,2.3242]
[1730763906601,0.41724,2398.0,2397.9,2.74146]
[1730763906802,0.41723,2398.1,2397.9,6.91186]
[1730763906999,0.9662512,2398.1,2397.9,2.3242]
[1730763907193,0.9662512,2398.1,2397.9,2.74145]
[1730763907194,1.3834812,2398.1,2397.9,2.74145]
[1730763908107,0.9662512,2398.1,2397.9,2.74145]
[1730763908300,0.41724,2398.0,2397.9,2.74145]
[1730763908507,3.2078,2398.2,2397.9,3.35634979]
[1730763908807,0.9662512,2398.1,2397.9,2.74145]
[1730763909104,0.41724,2398.0,2397.9,2.74145]
[1730763909305,0.41724,2398.0,2397.9,1.258]
[1730763909608,0.93294,2398.0,2397.9,1.258]
[1730763909801,0.93294,2398.0,2397.9,1.67526]
[1730763910103,0.93294,2398.0,2397.9,1.258]
[1730763910504,1.8991912,2398.0,2397.9,1.258]
[1730763910707,1.8991912,2398.0,2397.9,1.67526]
[1730763910906,0.41726,2397.9,2397.8,0.41726]
[1730763911104,0.9662512,2397.9,2397.8,1.03164104]
[1730763911499,1.3835112,2397.9,2397.8,1.03142273]
[1730763911898,0.9662512,2397.9,2397.8,1.03142273]
[1730763912305,0.9662512,2397.9,2397.8,2.29042273]
[1730763917103,1.3835112,2397.9,2397.8,0.61416273]
[1730763917407,0.9662512,2397.9,2397.3,4.68635]
[1730763917608,0.41734,2397.4,2397.3,2.3202]
[1730763917812,1.3835712,2397.6,2397.4,0.41734]
[1730763918003,1.3835712,2397.6,2397.5,1.03123535]
[1730763918197,1.3835712,2397.6,2397.3,2.3202]
[1730763918402,1.3835712,2397.6,2397.4,1.02826444]
[1730763918403,0.41733,2397.5,2397.4,1.02826444]
[1730763918800,0.41733,2397.5,2397.4,4.78212444]
[1730763919108,0.41733,2397.5,2397.4,5.19946444]
[1730763919410,0.41733,2397.5,2397.4,0.61092444]
[1730763919800,1.5795,2397.8,2397.4,4.78212444]
[1730763920002,0.9662512,2397.6,2397.5,0.41733]
[1730763920200,1.3835612,2397.6,2397.5,0.41733]
[1730763920601,1.3835612,2397.6,2397.5,1.02827736]
[1730763922397,1.3835612,2397.6,2397.5,0.61094736]
[1730763923203,4.5913612,2397.6,2397.5,0.61094736]
[1730763924203,4.1740512,2397.6,2397.3,0.5494]
[1730763924401,0.41737,2397.3,2397.2,0.41737]
[1730763924606,0.9662512,2397.3,2397.2,0.41737]
[1730763924802,1.3836112,2397.3,2397.2,0.41737]
[1730763925408,1.3836112,2397.3,2397.2,0.41738]
[1730763925409,0.9662512,2397.3,2397.2,0.41738]
[1730763925610,1.3836112,2397.3,2397.2,0.41738]
[1730763925912,0.9662512,2397.3,2397.2,0.41738]
[1730763926905,1.3836112,2397.3,2397.2,0.41738]
[1730763927110,0.9662512,2397.3,2397.2,0.41738]
[1730763927504,1.49606,2397.4,2397.3,0.41736]
[1730763927714,1.0787,2397.4,2397.3,0.41736]
[1730763928207,1.49604,2397.4,2397.3,0.41736]
[1730763929113,1.49604,2397.4,2397.3,3.23352144]
[1730763929604,1.49604,2397.4,2397.3,3.23503425]
[1730763930618,1.0787,2397.4,2397.3,3.23503425]
[1730763930911,1.49604,2397.4,2397.3,0.41736]
[1730763931211,1.49604,2397.4,2397.3,3.23648925]
[1730763932117,3.2078,2397.6,2397.4,0.41734]
[1730763932317,0.097,2397.9,2397.4,1.06317937]
[1730763932318,0.41733,2397.5,2397.4,1.06317937]
[1730763932515,0.41733,2397.5,2397.4,3.88425975]
[1730763932707,0.41732,2397.6,2397.5,0.41733]
[1730763932907,0.41732,2397.6,2397.5,3.23841038]
[1730763933704,0.41732,2397.6,2397.5,2.82108038]
[1730763934310,0.41732,2397.6,2397.5,0.41733]
[1730763934505,0.41734,2397.5,2397.4,0.64615498]
[1730763934715,0.41734,2397.5,2397.4,3.46859259]
[1730763935015,0.41734,2397.5,2397.4,2.82243761]
[1730763935317,0.93584,2397.5,2397.4,3.03701986]
[1730763936212,8.35803504,2397.5,2397.4,3.03701986]
[1730763936409,8.35803504,2397.5,2397.4,1.59529082]
[1730763937016,7.94069504,2397.5,2397.0,3.2078]
[1730763937221,0.4174,2397.1,2397.0,3.2078]
[1730763937515,3.66837504,2397.2,2397.1,0.21479989]
[1730763937719,3.66837504,2397.2,2397.1,0.21482332]
[1730763938816,1.04357,2397.0,2396.4,0.41751]
[1730763939009,0.4175,2396.6,2396.5,1.59847123]
[1730763939215,3.2078,2396.7,2396.3,2.3787]
[1730763939417,0.41748,2396.6,2396.5,0.41749]
[1730763939621,0.41759,2396.0,2395.9,1.62246938]
[1730763939821,0.41759,2396.0,2395.6,0.41765]
[1730763940114,0.41759,2396.0,2395.5,0.97267]
[1730763940115,0.41764,2395.7,2395.5,0.97267]
[1730763940318,3.25099504,2396.0,2395.5,0.97267]
[1730763940319,3.82079504,2396.0,2395.5,0.555]
[1730763940517,3.82079504,2396.0,2394.8,2.26904247]
[1730763940518,3.25099504,2395.7,2394.8,2.26904247]
[1730763940723,4.25189,2395.8,2394.8,2.26904247]
[1730763940724,3.66869504,2395.4,2395.1,0.41774]
[1730763940922,3.66869504,2395.4,2394.8,3.2078]
[1730763940923,3.25099504,2395.4,2394.8,3.2078]
[1730763941221,3.25099504,2394.9,2394.8,3.2078]
[1730763941426,3.25099504,2394.9,2394.2,3.02244591]
[1730763941427,3.66877504,2394.9,2394.5,0.41784]
[1730763941722,3.66877504,2394.9,2394.6,0.41782]
[1730763941723,0.41778,2394.9,2394.6,0.41782]
[1730763941929,3.25099504,2395.1,2394.2,5.1062]
[1730763942228,0.41776,2395.0,2394.6,0.41782]
[1730763942431,3.66874504,2395.1,2394.7,0.41781]
[1730763942630,3.66874504,2395.1,2394.2,6.15096]
[1730763942631,0.41777,2395.0,2394.6,0.41782]
[1730763942818,0.41778,2394.9,2394.6,0.41782]
[1730763943022,3.25099504,2395.1,2394.4,1.17747503]
[1730763943332,0.41775,2395.1,2394.3,1.17747503]
[1730763943519,3.62554,2395.2,2394.8,0.41779]
[1730763943828,3.2078,2395.2,2394.5,3.2078]
[1730763944031,3.2078,2395.2,2394.7,0.4178]
[1730763944423,0.41776,2395.0,2394.7,0.4178]
[1730763944820,3.2078,2395.2,2394.8,0.41779]
[1730763945026,3.62554,2395.2,2394.8,0.41779]
[1730763945225,3.2078,2395.2,2394.8,0.41779]
[1730763945539,0.41775,2395.1,2394.8,0.41779]
[1730763946026,3.62554,2395.2,2394.6,0.5353]
[1730763946232,3.2078,2395.2,2394.6,0.5353]
[1730763946436,0.4177,2395.4,2395.1,0.41774]
[1730763946621,3.2078,2395.5,2395.1,0.41773]
[1730763946829,3.62548,2395.5,2395.1,0.41773]
[1730763947029,0.41769,2395.4,2395.1,0.41773]
[1730763947236,0.41769,2395.4,2394.6,1.0868]
[1730763947532,0.41769,2395.4,2395.1,0.41774]
[1730763948536,0.4177,2395.4,2394.6,1.0868]
[1730763948728,0.4177,2395.4,2395.1,0.41774]
[1730763949538,0.4177,2395.4,2394.8,3.2078]
[1730763949829,3.2078,2395.5,2394.9,0.95747]
[1730763950029,0.41784,2394.6,2394.2,0.41788]
[1730763950231,0.41781,2394.7,2394.3,0.58650788]
[1730763950540,0.41781,2394.7,2394.4,0.41786]
[1730763950541,0.41782,2394.7,2394.4,0.41786]
[1730763950731,4.0116527,2395.1,2394.0,5.6339]
[1730763950927,3.3048,2395.2,2394.6,3.2078]
[1730763951131,3.2078,2395.2,2394.7,1.0797]
[1730763951334,3.2078,2395.2,2395.0,0.41775]
[1730763951829,3.2078,2395.5,2394.7,2.4117]
[1730763952026,3.2078,2395.5,2395.3,0.4177]
[1730763952236,41.4526,2395.8,2394.9,3.2078]
[1730763952237,3.62543,2395.8,2395.5,0.41766]
[1730763952436,3.62543,2395.8,2395.2,3.2078]
[1730763952437,3.2078,2395.8,2395.2,3.2078]
[1730763952741,3.2078,2395.8,2395.5,0.41767]
[1730763952742,3.62542,2395.8,2395.5,0.41767]
[1730763953135,3.62542,2395.8,2395.3,1.872]
[1730763953136,3.2078,2395.8,2395.7,0.41764]
[1730763953632,43.36827662,2396.1,2395.4,0.5368]
[1730763953836,0.41762,2395.9,2395.6,0.41766]
[1730763954139,3.2078,2395.8,2395.7,0.41764]
[1730763954435,5.77607662,2396.1,2395.9,0.4176]
[1730763954641,5.77607662,2396.1,2395.4,0.5368]
[1730763954830,5.77607662,2396.1,2395.6,0.41765]
[1730763954831,0.41761,2395.9,2395.6,0.41765]
[1730763955031,6.19365662,2396.1,2395.8,0.41761]
[1730763955434,5.77607662,2396.1,2395.4,0.5368]
[1730763955737,0.41759,2396.0,2395.5,3.79419131]
[1730763955943,3.2078,2396.1,2396.0,0.41759]
[1730763956639,40.8,2396.3,2396.1,0.41756]
[1730763956834,3.62533,2396.4,2396.1,0.41756]
[1730763957034,0.41754,2396.3,2396.0,0.41757]
[1730763957336,44.0078,2396.4,2396.0,0.41759]
[1730763957547,44.0078,2396.4,2395.6,0.58660219]
[1730763957742,0.41764,2395.8,2395.5,3.62547]
[1730763958140,3.2078,2396.1,2395.5,3.2078]
[1730763958331,0.41765,2395.7,2395.5,3.2078]
[1730763958840,0.41763,2395.8,2395.5,3.62547]
[1730763959336,3.7568,2396.1,2395.5,3.2078]
[1730763959542,0.41766,2395.6,2395.5,3.2078]
[1730763959743,3.7568,2396.1,2395.5,3.2078]
[1730763960041,0.41761,2395.9,2395.6,0.41765]
[1730763960247,0.41759,2396.0,2395.6,0.41765]
[1730763960443,3.7568,2396.1,2395.4,0.5368]
[1730763960632,0.41769,2395.4,2395.3,0.54]
[1730763960839,3.2078,2395.6,2395.3,0.54]
[1730763961038,3.62546,2395.6,2395.3,0.9577]
[1730763961248,3.2078,2395.6,2395.3,0.54]
[1730763961442,0.41767,2395.5,2395.3,0.54]
[1730763961941,0.41767,2395.5,2395.3,0.95771]
[1730763962245,0.41767,2395.5,2395.3,0.54]
[1730763962440,3.2078,2395.6,2395.3,0.9577]
[1730763962641,3.2078,2395.6,2395.3,0.54]
[1730763963047,3.62547,2395.6,2395.3,0.95769]
[1730763963341,3.2078,2395.6,2395.3,0.54]
[1730763963751,3.62546,2395.6,2395.4,0.41768]
[1730763964044,3.2078,2395.6,2395.5,0.41767]
[1730763964239,0.41761,2395.9,2395.7,0.41763]
[1730763964645,3.2078,2396.3,2395.5,3.2078]
[1730763964835,3.62534,2396.3,2396.1,0.41755]
[1730763965041,5.1281527,2396.5,2396.3,0.41753]
[1730763965042,0.41751,2396.5,2396.3,0.41753]
[1730763965239,0.41752,2396.4,2396.2,0.41755]
[1730763965440,0.41753,2396.3,2395.9,0.98499]
[1730763965744,3.2078,2396.4,2395.9,0.98499]
[1730763965745,0.41757,2396.1,2395.9,0.98499]
[1730763965952,0.41756,2396.2,2396.0,0.41759]
[1730763966149,3.2078,2396.4,2395.9,0.5674]
[1730763966446,0.4176,2395.9,2395.8,1.332]
[1730763966648,0.4176,2395.9,2395.8,0.58512937]
[1730763966842,1.04406,2395.8,2395.2,1.332]
[1730763967142,0.41771,2395.3,2395.2,1.332]
[1730763967740,2.08775,2396.3,2395.2,11.40719212]
[1730763967741,4.0116527,2396.3,2395.2,11.40719212]
[1730763968049,0.41765,2395.7,2395.5,0.41767]
[1730763968352,4.25177,2396.1,2395.3,1.52174637]
[1730763968353,0.5812,2396.0,2395.3,1.04428]
[1730763968650,1.04384,2396.3,2395.8,3.2078]
[1730763968845,0.41763,2395.8,2395.6,0.41764]
[1730763969042,1.04397,2396.0,2395.3,4.6108]
[1730763969242,3.2078,2396.1,2395.4,0.58546435]
[1730763969445,0.41758,2396.1,2395.9,0.4176]
[1730763969847,0.5274,2396.3,2396.0,0.41758]
[1730763970159,0.5274,2396.3,2395.7,0.5419]
[1730763970457,0.41759,2396.0,2395.8,1.00317257]
[1730763970648,0.41759,2396.0,2395.7,0.5419]
[1730763970847,0.41759,2396.0,2395.7,1.52072]
[1730763971043,0.5274,2396.3,2395.7,1.1031]
[1730763971355,0.41759,2396.0,2395.8,0.41761]
[1730763971750,0.5274,2396.3,2395.7,1.52073]
[1730763971751,0.41761,2395.9,2395.7,1.52073]
[1730763972151,0.41755,2396.2,2396.0,0.41759]
[1730763972353,0.41755,2396.2,2396.0,0.41757]
[1730763972556,0.4176,2395.9,2395.8,0.41761]
[1730763972748,0.4176,2395.9,2395.8,1.00341735]
[1730763972956,0.4176,2395.9,2395.8,5.17701735]
[1730763973158,0.4176,2395.9,2395.7,1.1031]
[1730763973159,0.4176,2395.9,2395.7,1.52073]
[1730763973456,0.4176,2396.0,2395.8,0.41761]
[1730763973661,0.5274,2396.3,2395.7,1.1031]
[1730763973861,0.41762,2395.8,2395.7,1.52073]
[1730763974160,0.41764,2395.7,2395.6,3.2078]
[1730763974458,1.04396,2396.1,2395.2,1.17227928]
[1730763974459,0.41771,2395.4,2395.2,2.91372]
[1730763974659,3.2078,2395.9,2395.3,0.58625535]
[1730763974660,0.41765,2395.7,2395.3,0.58625535]
[1730763974860,3.2078,2395.9,2395.2,2.496]
[1730763974861,3.2078,2395.9,2395.6,0.41766]
[1730763975158,0.41764,2395.7,2395.3,1.8207]
[1730763975357,0.5536,2395.6,2395.3,1.403]
[1730763975557,0.97126,2395.6,2395.5,0.41767]
[1730763975862,0.5536,2395.6,2395.4,0.41768]
[1730763976161,0.97126,2395.6,2395.4,0.41767]
[1730763976955,0.97127,2395.6,2395.4,0.41768]
[1730763977256,3.3048,2396.1,2395.4,3.2078]
[1730763977454,3.3048,2396.1,2395.5,0.58694242]
[1730763977455,0.41766,2395.6,2395.5,0.58694242]
[1730763977655,0.5536,2395.9,2395.3,1.82071]
[1730763977851,0.41768,2395.5,2395.4,0.58693252]
[1730763978060,4.0116527,2395.5,2394.6,0.5338]
[1730763978360,4.25223,2395.0,2394.7,0.5872976]
[1730763978560,4.25223,2395.0,2394.4,3.2078]
[1730763978561,0.5675,2394.9,2394.4,3.2078]
[1730763978756,0.5675,2394.9,2394.5,0.58442398]
[1730763978757,0.41783,2394.6,2394.5,0.58442398]
[1730763979261,0.5675,2394.9,2394.5,0.5847471]
[1730763979462,0.41782,2394.7,2394.5,0.41784]
[1730763979652,0.5675,2394.9,2394.4,3.2078]
[1730763979855,0.41785,2394.6,2394.4,3.2078]
[1730763980061,0.41785,2394.6,2394.5,0.58501359]
[1730763980359,0.5675,2394.9,2394.5,0.58501359]
[1730763980561,0.41781,2394.7,2394.4,3.62566]
[1730763980751,0.41784,2394.6,2394.5,0.58490009]
[1730763981661,3.2078,2394.7,2394.2,0.5429]
[1730763981963,0.41788,2394.4,2394.3,0.58521688]
[1730763982164,0.41788,2394.4,2394.3,1.52224706]
[1730763982964,0.41788,2394.4,2394.3,0.58521688]
[1730763983166,3.62561,2394.8,2394.5,0.41784]
[1730763983369,0.41782,2394.7,2394.6,0.58521688]
[1730763983961,4.59382,2394.7,2394.6,0.58521688]
[1730763984364,4.59381,2394.7,2394.6,0.58591594]
[1730763985056,4.59381,2394.7,2394.6,1.52369629]
[1730763985256,4.59381,2394.7,2394.6,0.58591594]
[1730763985565,4.59381,2394.7,2394.6,0.58603737]
[1730763986570,3.7753,2394.9,2394.6,0.58603737]
[1730763986761,0.5675,2394.9,2394.7,1.00383737]
[1730763987066,1.52285,2395.1,2394.8,1.00381737]
[1730763987263,3.2078,2395.5,2394.9,0.58603737]
[1730763987463,0.41773,2395.2,2395.0,2.68215885]
[1730763987662,0.4177,2395.4,2395.1,0.41773]
[1730763987859,0.5097,2395.6,2395.2,0.58576948]
[1730763988061,0.5097,2395.6,2395.3,0.58576948]
[1730763988265,3.25875406,2395.4,2395.0,0.5291]
[1730763988463,0.41774,2395.2,2395.1,1.52305921]
[1730763988766,0.41774,2395.2,2395.1,0.585792]
[1730763990459,0.41773,2395.3,2395.1,0.585792]
[1730763990664,0.41773,2395.3,2395.2,0.585792]
[1730763991169,4.1752,2395.3,2394.8,1.9012]
[1730763991361,3.2078,2395.5,2395.2,0.41771]
[1730763991362,0.41769,2395.5,2395.2,0.41771]
[1730763991564,0.41769,2395.5,2395.3,0.58582139]
[1730763991768,0.41769,2395.5,2395.2,0.41771]
[1730763991975,0.41769,2395.4,2395.3,0.58579032]
[1730763992275,0.41769,2395.4,2395.2,0.41771]
[1730763992968,0.5097,2395.6,2395.0,3.2078]
[1730763992969,0.41774,2395.1,2395.0,3.2078]
[1730763993167,4.52090796,2395.6,2395.0,4.21138543]
[1730763993369,0.41774,2395.2,2395.1,0.58582543]
[1730763993673,0.4177,2395.4,2395.1,1.00355543]
[1730763993971,41.2177,2395.4,2395.1,0.41773]
[1730763994167,0.41771,2395.3,2395.1,0.41773]
[1730763994672,0.41771,2395.3,2395.0,3.62555]
[1730763994971,40.8,2395.4,2395.1,0.58581263]
[1730763995168,41.2177,2395.4,2395.2,0.41772]
[1730763995566,4.01120796,2395.6,2395.0,3.2078]
[1730763995765,4.01120796,2395.6,2395.4,0.41769]
[1730763995766,0.41766,2395.6,2395.4,0.41769]
[1730763997476,40.8,2395.7,2395.0,4.25219]
[1730763997661,40.8,2395.7,2394.8,5.62435964]
[1730763997662,4.42893796,2395.2,2395.1,0.79779597]
[1730763997866,4.42893796,2395.2,2394.8,0.91499]
[1730763997867,7.21900796,2395.2,2394.8,0.4972]
[1730763998176,0.41777,2395.0,2394.8,0.4972]
[1730763999072,0.41777,2395.0,2394.8,0.915]
[1730763999268,3.2078,2395.2,2394.8,0.4972]
[1730763999472,7.21900796,2394.9,2394.4,0.5161]
[1730763999671,0.41785,2394.5,2394.4,0.5161]
[1730763999968,7.21900796,2394.9,2394.1,0.5217]
[1730763999969,1.04458,2394.6,2394.1,0.5217]
[1730764000193,4.01120796,2394.4,2394.0,0.93751627]
[1730764000364,4.01120796,2394.4,2393.9,4.14184]
[1730764000566,4.01120796,2394.4,2393.9,3.7239]
[1730764000768,0.41793,2394.1,2393.9,3.7239]
[1730764001270,0.41794,2394.0,2393.9,3.2078]
[1730764001974,40.8,2394.2,2394.0,0.41793]
[1730764002297,41.21791,2394.2,2394.0,0.41793]
[1730764002470,41.21791,2394.2,2393.9,3.2078]
[1730764002666,0.41792,2394.1,2393.9,3.62574]
[1730764002866,40.8,2394.2,2393.9,3.62574]
[1730764003075,41.21791,2394.2,2393.9,3.2078]
[1730764003374,40.8,2394.2,2393.9,3.62574]
[1730764003685,0.41792,2394.1,2393.9,3.62574]
[1730764003977,40.8,2394.2,2394.0,0.41793]
[1730764004465,41.21791,2394.2,2394.0,0.41793]
[1730764005068,0.41787,2394.4,2394.2,0.4179]
[1730764005275,0.41784,2394.6,2394.4,0.41786]
[1730764005578,0.41786,2394.5,2394.2,0.41788]
[1730764005875,0.41785,2394.6,2394.3,0.41787]
[1730764006070,0.41785,2394.6,2394.3,0.41788]
[1730764006272,7.21900796,2394.9,2394.3,0.41788]
[1730764006473,0.41788,2394.4,2394.2,0.4179]
[1730764006673,4.01120796,2394.7,2394.1,0.5167]
[1730764006877,0.41788,2394.3,2394.1,0.93461]
[1730764007177,44.81120796,2394.7,2394.2,0.41789]
[1730764007377,40.8,2394.7,2394.1,0.5167]
[1730764007677,4.25228,2394.9,2394.1,3.7245]
[1730764007977,0.41789,2394.3,2394.1,4.1424]
[1730764008774,0.4179,2394.2,2394.1,3.7245]
[1730764009172,0.4179,2394.2,2394.1,4.14242]
[1730764009980,0.41789,2394.3,2394.1,3.7245]
[1730764010176,0.4179,2394.2,2394.1,4.14241]
[1730764010582,0.5251,2394.5,2394.1,4.14241]
[1730764010877,0.41788,2394.4,2394.1,3.7245]
[1730764011185,0.94296,2394.5,2394.4,0.41787]
[1730764011383,0.5251,2394.5,2394.1,3.7245]
[1730764011584,0.41787,2394.4,2394.3,0.41788]
[1730764011974,0.41786,2394.5,2394.4,0.41786]
[1730764012270,44.06015625,2394.8,2394.3,0.41788]
[1730764012271,0.41787,2394.4,2394.3,0.41788]
[1730764012476,0.41787,2394.4,2394.1,3.7245]
[1730764012477,0.41789,2394.3,2394.2,0.41789]
[1730764013777,0.41788,2394.4,2394.2,0.41789]
[1730764014284,44.68015625,2394.8,2394.1,3.7245]
[1730764014484,44.68015625,2394.8,2394.3,0.41787]
[1730764014678,0.41787,2394.4,2394.3,0.41787]
[1730764014988,0.41787,2394.4,2394.2,0.41789]
[1730764015282,44.68015625,2394.8,2394.2,0.41789]